{"text_format":"3","workbook":"xlsx","n_sheets":2,"sheets":["Pregled budžeta","Detalji o budžetu"],"not_rendered":{"images":1,"defined_names":1},"read":"whole","date_system":"1900"}

{"sheet":"Pregled budžeta","index":0,"n_rows":28,"n_cols":7,"rows_kept":28}
[{"$nulls":6}," "]
[]
[null,"UKUPAN BUDŽET ZA VENČANJE",{"v":20000,"d":"20,000 RSD"}]
[]
[null,"TROŠKOVI","Dodela \n%","Dodeljeni budžet","Procenjeno \nTroškovi","Stvarni \nTroškovi"]
[null,"Prijem",{"v":0.5,"d":"50%"},{"$f":"Ukupan_budžet_za_venčanje*'Pregled budžeta'!$C6","v":{"v":10000,"d":"10,000 RSD"}},{"$f":"Tabela_Prijem[[#Totals],[Procenjeni troškovi]]","v":{"v":0,"d":"0 RSD"}},{"$f":"Tabela_Prijem[[#Totals],[Stvarni troškovi]]","v":{"v":0,"d":"0 RSD"}}]
[null,"Svečano odelo",{"v":0.1,"d":"10%"},{"$f":"Ukupan_budžet_za_venčanje*'Pregled budžeta'!$C7","v":{"v":2000,"d":"2,000 RSD"}},{"$f":"Tabela_Odeća[[#Totals],[Procenjeni troškovi]]","v":{"v":0,"d":"0 RSD"}},{"$f":"Tabela_Odeća[[#Totals],[Stvarni troškovi]]","v":{"v":0,"d":"0 RSD"}}]
[null,"Cvetovi i ukrasi",{"v":0.1,"d":"10%"},{"$f":"Ukupan_budžet_za_venčanje*'Pregled budžeta'!$C8","v":{"v":2000,"d":"2,000 RSD"}},{"$f":"Tabela_CvećeIDekoracija[[#Totals],[Procenjeni troškovi]]","v":{"v":0,"d":"0 RSD"}},{"$f":"Tabela_CvećeIDekoracija[[#Totals],[Stvarni troškovi]]","v":{"v":0,"d":"0 RSD"}}]
[null,"Muzika",{"v":0.1,"d":"10%"},{"$f":"Ukupan_budžet_za_venčanje*'Pregled budžeta'!$C9","v":{"v":2000,"d":"2,000 RSD"}},{"$f":"Tabela_Muzika[[#Totals],[Procenjeni troškovi]]","v":{"v":0,"d":"0 RSD"}},{"$f":"Tabela_Muzika[[#Totals],[Stvarni troškovi]]","v":{"v":0,"d":"0 RSD"}}]
[null,"Fotografije i video zapisi",{"v":0.1,"d":"10%"},{"$f":"Ukupan_budžet_za_venčanje*'Pregled budžeta'!$C10","v":{"v":2000,"d":"2,000 RSD"}},{"$f":"Tabela_FotografijeIVideo[[#Totals],[Procenjeni troškovi]]","v":{"v":0,"d":"0 RSD"}},{"$f":"Tabela_FotografijeIVideo[[#Totals],[Stvarni troškovi]]","v":{"v":0,"d":"0 RSD"}}]
[null,"Usluge i pokloni",{"v":0.03,"d":"3%"},{"$f":"Ukupan_budžet_za_venčanje*'Pregled budžeta'!$C11","v":{"v":600,"d":"600 RSD"}},{"$f":"Tabela_SuveniriIPokloni[[#Totals],[Procenjeni troškovi]]","v":{"v":0,"d":"0 RSD"}},{"$f":"Tabela_SuveniriIPokloni[[#Totals],[Stvarni troškovi]]","v":{"v":0,"d":"0 RSD"}}]
[null,"Ceremonija",{"v":0.02,"d":"2%"},{"$f":"Ukupan_budžet_za_venčanje*'Pregled budžeta'!$C12","v":{"v":400,"d":"400 RSD"}},{"$f":"Tabela_Ceremonija[[#Totals],[Procenjeni troškovi]]","v":{"v":0,"d":"0 RSD"}},{"$f":"Tabela_Ceremonija[[#Totals],[Stvarni troškovi]]","v":{"v":0,"d":"0 RSD"}}]
[null,"Podloga za pisanje",{"v":0.02,"d":"2%"},{"$f":"Ukupan_budžet_za_venčanje*'Pregled budžeta'!$C13","v":{"v":400,"d":"400 RSD"}},{"$f":"Tabela_SvadbeniArtikli[[#Totals],[Procenjeni troškovi]]","v":{"v":0,"d":"0 RSD"}},{"$f":"Tabela_SvadbeniArtikli[[#Totals],[Stvarni troškovi]]","v":{"v":0,"d":"0 RSD"}}]
[null,"Burme",{"v":0.02,"d":"2%"},{"$f":"Ukupan_budžet_za_venčanje*'Pregled budžeta'!$C14","v":{"v":400,"d":"400 RSD"}},{"$f":"Tabela_Burme[[#Totals],[Procenjeni troškovi]]","v":{"v":0,"d":"0 RSD"}},{"$f":"Tabela_Burme[[#Totals],[Stvarni troškovi]]","v":{"v":0,"d":"0 RSD"}}]
[null,"Prevoz",{"v":0.01,"d":"1%"},{"$f":"Ukupan_budžet_za_venčanje*'Pregled budžeta'!$C15","v":{"v":200,"d":"200 RSD"}},{"$f":"Tabela_Prevoz[[#Totals],[Procenjeni troškovi]]","v":{"v":0,"d":"0 RSD"}},{"$f":"Tabela_Prevoz[[#Totals],[Stvarni troškovi]]","v":{"v":0,"d":"0 RSD"}}]
[null,"Zbir",{"$f":"SUM(C6:C15)","v":{"v":1,"d":"100%"}},{"$f":"SUM(D6:D15)","v":{"v":20000,"d":"20,000 RSD"}},{"v":0,"d":"0 RSD"},{"v":0,"d":"0 RSD"}]
[]
[null,"DOPRINOSI"]
[null,"Izvor fonda","Doprinos"]
[null,"Štednja",{"v":10000,"d":"10,000 RSD"}]
[null,"Mama i tata partnera 1",{"v":4000,"d":"4,000 RSD"}]
[null,"Baka i deka partnera 1",{"v":2000,"d":"2,000 RSD"}]
[null,"Mama i tata partnera 2",{"v":4000,"d":"4,000 RSD"}]
[null,"Baka i deka partnera 2",{"v":4000,"d":"4,000 RSD"}]
[null,"Drugi doprinosi",{"v":2000,"d":"2,000 RSD"}]
[null,"Zbir",{"$f":"SUBTOTAL(109,Tabela_Doprinosi[Doprinos])","v":{"v":26000,"d":"26,000 RSD"}}]
[]
[null,{"$f":"IF(Tabela_Doprinosi[[#Totals],[Doprinos]]<Ukupan_budžet_za_venčanje,\"Razlika koja bi trebalo da se nadoknadi\",\"Dostupna dodatna sredstva\")","v":"Dostupna dodatna sredstva"},{"$f":"IF(Tabela_Doprinosi[[#Totals],[Doprinos]]<Ukupan_budžet_za_venčanje,Ukupan_budžet_za_venčanje-Tabela_Doprinosi[[#Totals],[Doprinos]],Tabela_Doprinosi[[#Totals],[Doprinos]]-Ukupan_budžet_za_venčanje)","v":{"v":6000,"d":"6,000 RSD"}}]

{"sheet":"Detalji o budžetu","index":1,"n_rows":80,"n_cols":4,"rows_kept":80}
[]
[null,"PRIJEM","Procenjeni troškovi","Stvarni troškovi"]
[null,"Mesto i iznajmljivanje"]
[null,"Hrana i usluga"]
[null,"Pića"]
[null,"Torta"]
[null,"Razni troškovi"]
[null,"Zbir",{"$f":"SUBTOTAL(109,Tabela_Prijem[Procenjeni troškovi])","v":{"v":0,"d":"0.00 RSD"}},{"$f":"SUBTOTAL(109,Tabela_Prijem[Stvarni troškovi])","v":{"v":0,"d":"0.00 RSD"}}]
[]
[null,"SVEČANO ODELO","Procenjeni troškovi","Stvarni troškovi"]
[null,"Smoking, odelo i/ili haljine"]
[null,"Prepravke"]
[null,"Tijara i veo"]
[null,"Modni dodaci"]
[null,"Frizura i šminka"]
[null,"Razni troškovi"]
[null,"Zbir",{"$f":"SUBTOTAL(109,Tabela_Odeća[Procenjeni troškovi])","v":{"v":0,"d":"0.00 RSD"}},{"$f":"SUBTOTAL(109,Tabela_Odeća[Stvarni troškovi])","v":{"v":0,"d":"0.00 RSD"}}]
[]
[null,"CVEĆE I UKRASI","Procenjeni troškovi","Stvarni troškovi"]
[null,"Cvetni aranžmani za ceremoniju"]
[null,"Cvetni pupoljci i korpa za devojčicu koja nosi cveće"]
[null,"Jastučić za burme"]
[null,"Buketi"]
[null,"Kićenje"]
[null,"Korseti"]
[null,"Prijemni ukrasi"]
[null,"Rasveta"]
[null,"Razni troškovi"]
[null,"Zbir",{"$f":"SUBTOTAL(109,Tabela_CvećeIDekoracija[Procenjeni troškovi])","v":{"v":0,"d":"0.00 RSD"}},{"$f":"SUBTOTAL(109,Tabela_CvećeIDekoracija[Stvarni troškovi])","v":{"v":0,"d":"0.00 RSD"}}]
[]
[null,"MUZIKA","Procenjeni troškovi","Stvarni troškovi"]
[null,"Muzičari za ceremoniju"]
[null,"Muzičari za koktel čas"]
[null,"Bend na prijemu, di džej ili zabava"]
[null,"Ozvučenje ili iznajmljivanje podijuma za igru"]
[null,"Razni troškovi"]
[null,"Zbir",{"$f":"SUBTOTAL(109,Tabela_Muzika[Procenjeni troškovi])","v":{"v":0,"d":"0.00 RSD"}},{"$f":"SUBTOTAL(109,Tabela_Muzika[Stvarni troškovi])","v":{"v":0,"d":"0.00 RSD"}}]
[]
[null,"FOTOGRAFIJE I VIDEO ZAPIS","Procenjeni troškovi","Stvarni troškovi"]
[null,"Fotografija"]
[null,"Videografija"]
[null,"Dodatna štampa i albumi"]
[null,"Razni troškovi"]
[null,"Zbir",{"$f":"SUBTOTAL(109,Tabela_FotografijeIVideo[Procenjeni troškovi])","v":{"v":0,"d":"0.00 RSD"}},{"$f":"SUBTOTAL(109,Tabela_FotografijeIVideo[Stvarni troškovi])","v":{"v":0,"d":"0.00 RSD"}}]
[]
[null,"USLUGE I POKLONI","Procenjeni troškovi","Stvarni troškovi"]
[null,"Pokloni dobrodošlice"]
[null,"Pokloni za žurku"]
[null,"Razni troškovi"]
[null,"Zbir",{"$f":"SUBTOTAL(109,Tabela_SuveniriIPokloni[Procenjeni troškovi])","v":{"v":0,"d":"0.00 RSD"}},{"$f":"SUBTOTAL(109,Tabela_SuveniriIPokloni[Stvarni troškovi])","v":{"v":0,"d":"0.00 RSD"}}]
[]
[null,"CEREMONIJA","Procenjeni troškovi","Stvarni troškovi"]
[null,"Naknada za lokaciju"]
[null,"Naknada za matičara ili crkvena donacija"]
[null,"Razni troškovi"]
[null,"Zbir",{"$f":"SUBTOTAL(109,Tabela_Ceremonija[Procenjeni troškovi])","v":{"v":0,"d":"0.00 RSD"}},{"$f":"SUBTOTAL(109,Tabela_Ceremonija[Stvarni troškovi])","v":{"v":0,"d":"0.00 RSD"}}]
[]
[null,"PODLOGA ZA PISANJE","Procenjeni troškovi","Stvarni troškovi"]
[null,"„Zabeležite datum“ kartice"]
[null,"Pozivnice i potvrda dolaska"]
[null,"Programi"]
[null,"Kartice rasporeda sedenja i mesta"]
[null,"Karte menija"]
[null,"Zahvalnice"]
[null,"Poštarina"]
[null,"Razni troškovi"]
[null,"Zbir",{"$f":"SUBTOTAL(109,Tabela_SvadbeniArtikli[Procenjeni troškovi])","v":{"v":0,"d":"0.00 RSD"}},{"$f":"SUBTOTAL(109,Tabela_SvadbeniArtikli[Stvarni troškovi])","v":{"v":0,"d":"0.00 RSD"}}]
[]
[null,"BURME","Procenjeni troškovi","Stvarni troškovi"]
[null,"Burme"]
[null,"Pribor za prsten"]
[null,"Zbir",{"$f":"SUBTOTAL(109,Tabela_Burme[Procenjeni troškovi])","v":{"v":0,"d":"0.00 RSD"}},{"$f":"SUBTOTAL(109,Tabela_Burme[Stvarni troškovi])","v":{"v":0,"d":"0.00 RSD"}}]
[]
[null,"PREVOZ","Procenjeni troškovi","Stvarni troškovi"]
[null,"Iznajmljivanje automobila za mladence"]
[null,"Iznajmljivanje automobila za goste"]
[null,"Prevoz za goste koji žive van grada"]
[null,"Parking usluga"]
[null,"Razni troškovi"]
[null,"Zbir",{"$f":"SUBTOTAL(109,Tabela_Prevoz[Procenjeni troškovi])","v":{"v":0,"d":"0.00 RSD"}},{"$f":"SUBTOTAL(109,Tabela_Prevoz[Stvarni troškovi])","v":{"v":0,"d":"0.00 RSD"}}]